[Event "*** SCC Grand Prix: Titled Tuesday Blitz"]
[Site "Chess.com"]
[Date "2020.07.21"]
[Round "8"]
[White "Andrei_Belozerov"]
[Black "Phriex"]
[Result "1-0"]
[WhiteElo "2556"]
[BlackElo "2387"]
[TimeControl "180+1"]
[EndTime "11:36:09 PDT"]
[Termination "Andrei_Belozerov won by resignation"]

1. e4 {[%clk 0:03:00.9]} 1... c5 {[%clk 0:02:59.5]} 2. Nf3 {[%clk 0:02:58]} 2...
e6 {[%clk 0:03:00.1]} 3. d4 {[%clk 0:02:57.9]} 3... cxd4 {[%clk 0:03:01]} 4.
Nxd4 {[%clk 0:02:58.2]} 4... Nc6 {[%clk 0:03:00.5]} 5. Nc3 {[%clk 0:02:57.7]}
5... Qc7 {[%clk 0:03:00.5]} 6. Be3 {[%clk 0:02:55.7]} 6... a6 {[%clk 0:03:00.5]}
7. Qd2 {[%clk 0:02:54.2]} 7... Nf6 {[%clk 0:03:00.5]} 8. O-O-O {[%clk
0:02:51.9]} 8... Be7 {[%clk 0:03:01.1]} 9. f3 {[%clk 0:02:50.1]} 9... b5 {[%clk
0:03:01.5]} 10. g4 {[%clk 0:02:49.6]} 10... Nxd4 {[%clk 0:03:02.1]} 11. Bxd4
{[%clk 0:02:48.2]} 11... Bb7 {[%clk 0:03:02.8]} 12. g5 {[%clk 0:02:41.1]} 12...
Nh5 {[%clk 0:03:03]} 13. Kb1 {[%clk 0:02:35.4]} 13... b4 {[%clk 0:02:59.8]} 14.
Ne2 {[%clk 0:02:34.3]} 14... d5 {[%clk 0:02:59.5]} 15. Ng3 {[%clk 0:02:27.6]}
15... Nf4 {[%clk 0:02:53.8]} 16. Bxg7 {[%clk 0:02:22.1]} 16... Rg8 {[%clk
0:02:50.9]} 17. Bf6 {[%clk 0:02:20]} 17... Rc8 {[%clk 0:02:36.3]} 18. Bxe7
{[%clk 0:02:17.7]} 18... Kxe7 {[%clk 0:02:35.2]} 19. Qxb4+ {[%clk 0:02:17.4]}
19... Ke8 {[%clk 0:02:31.3]} 20. Qd2 {[%clk 0:02:07.3]} 20... Rxg5 {[%clk
0:02:26.3]} 21. Bd3 {[%clk 0:02:05.4]} 21... dxe4 {[%clk 0:02:17.2]} 22. Bxe4
{[%clk 0:01:59.3]} 22... Bxe4 {[%clk 0:02:12.3]} 23. Nxe4 {[%clk 0:01:59]} 23...
Rg2 {[%clk 0:01:53.8]} 24. Qb4 {[%clk 0:01:31]} 24... Qxc2+ {[%clk 0:01:41.6]}
25. Ka1 {[%clk 0:01:30.4]} 25... Nd5 {[%clk 0:01:31.8]} 26. Nd6+ {[%clk
0:01:29.9]} 26... Kd7 {[%clk 0:00:59]} 27. Nxc8 {[%clk 0:01:28.8]} 27... Kxc8
{[%clk 0:00:46]} 28. Qf8+ {[%clk 0:01:27.4]} 28... Kb7 {[%clk 0:00:43.1]} 29.
Qxf7+ {[%clk 0:01:27.1]} 29... Ka8 {[%clk 0:00:41.5]} 30. Qe8+ {[%clk
0:01:24.5]} 30... Kb7 {[%clk 0:00:40.5]} 31. Qd7+ {[%clk 0:01:24.1]} 31... Ka8
{[%clk 0:00:40.8]} 32. Qd8+ {[%clk 0:01:21.9]} 32... Kb7 {[%clk 0:00:38.4]} 33.
Qh8 {[%clk 0:01:19.7]} 33... Qc6 {[%clk 0:00:19.9]} 34. Rc1 {[%clk 0:01:17]}
34... Qb5 {[%clk 0:00:20]} 35. Qc8+ {[%clk 0:01:16]} 35... Kb6 {[%clk 0:00:20]}
36. Qd8+ {[%clk 0:01:15.4]} 36... Ka7 {[%clk 0:00:19]} 37. Rc7+ {[%clk 0:01:08]}
37... Nxc7 {[%clk 0:00:18.2]} 38. Qxc7+ {[%clk 0:01:07.8]} 38... Qb7 {[%clk
0:00:19.1]} 39. Qc5+ {[%clk 0:01:05.7]} 39... Qb6 {[%clk 0:00:17.9]} 40. Qe7+
{[%clk 0:01:05.4]} 40... Qb7 {[%clk 0:00:16.7]} 41. Qf6 {[%clk 0:01:03.3]} 41...
Rf2 {[%clk 0:00:10.8]} 42. Rc1 {[%clk 0:01:01.1]} 42... Rxf3 {[%clk 0:00:08.9]}
43. Qxe6 {[%clk 0:01:00.7]} 43... Rf7 {[%clk 0:00:06.8]} 44. a3 {[%clk
0:01:00.1]} 44... Re7 {[%clk 0:00:06.6]} 45. Qd6 {[%clk 0:00:59.6]} 45... Rd7
{[%clk 0:00:06.5]} 46. Qc5+ {[%clk 0:00:59.4]} 46... Qb6 {[%clk 0:00:07]} 47.
Qc3 {[%clk 0:00:59]} 47... Rb7 {[%clk 0:00:05.9]} 48. Ka2 {[%clk 0:00:57.4]}
48... Qe6+ {[%clk 0:00:06.1]} 49. Qc4 {[%clk 0:00:57.6]} 49... Qxc4+ {[%clk
0:00:05.9]} 50. Rxc4 {[%clk 0:00:57.4]} 50... Rf7 {[%clk 0:00:06.8]} 51. Rh4
{[%clk 0:00:57.1]} 51... Kb7 {[%clk 0:00:06.9]} 52. Rh6 {[%clk 0:00:57.1]} 52...
Ka7 {[%clk 0:00:07.2]} 53. h4 {[%clk 0:00:57.1]} 53... Kb7 {[%clk 0:00:07.8]}
54. Kb3 {[%clk 0:00:57]} 54... Ka7 {[%clk 0:00:07.5]} 55. Ka4 {[%clk 0:00:57.3]}
55... Rf4+ {[%clk 0:00:07]} 56. b4 {[%clk 0:00:57.2]} 56... Rf7 {[%clk
0:00:07.9]} 57. Rh5 {[%clk 0:00:55.6]} 57... Kb7 {[%clk 0:00:07.7]} 58. Ka5
{[%clk 0:00:55]} 58... Ka7 {[%clk 0:00:07.3]} 59. a4 {[%clk 0:00:54.6]} 59...
Kb7 {[%clk 0:00:06.7]} 60. Rh6 {[%clk 0:00:54.2]} 60... Rf5+ {[%clk 0:00:06.5]}
61. b5 {[%clk 0:00:54.4]} 61... axb5 {[%clk 0:00:07.4]} 62. Rxh7+ {[%clk
0:00:54.4]} 62... Rf7 {[%clk 0:00:08.3]} 63. Rxf7+ {[%clk 0:00:54.1]} 1-0

[Event "*** SCC Grand Prix: Titled Tuesday Blitz"]
[Site "Chess.com"]
[Date "2020.07.21"]
[Round "8"]
[White "larisakalinina"]
[Black "ShadowJolteon"]
[Result "0-1"]
[WhiteElo "1951"]
[BlackElo "2334"]
[TimeControl "180+1"]
[EndTime "11:36:10 PDT"]
[Termination "ShadowJolteon won on time"]

1. e4 {[%clk 0:03:00.9]} 1... c6 {[%clk 0:02:59.4]} 2. d4 {[%clk 0:02:59.8]}
2... d5 {[%clk 0:02:58.6]} 3. Nc3 {[%clk 0:02:59.8]} 3... dxe4 {[%clk
0:02:58.5]} 4. Nxe4 {[%clk 0:03:00.5]} 4... Bf5 {[%clk 0:02:58.2]} 5. Ng3 {[%clk
0:02:59]} 5... Bg6 {[%clk 0:02:58.4]} 6. Nh3 {[%clk 0:02:59]} 6... e6 {[%clk
0:02:57.7]} 7. Nf4 {[%clk 0:02:59.2]} 7... Bd6 {[%clk 0:02:58.6]} 8. h4 {[%clk
0:02:55.8]} 8... Qc7 {[%clk 0:02:57.9]} 9. Nxg6 {[%clk 0:02:54]} 9... hxg6
{[%clk 0:02:58.8]} 10. Ne4 {[%clk 0:02:52]} 10... Bf4 {[%clk 0:02:57.5]} 11. Qf3
{[%clk 0:02:48.1]} 11... Bxc1 {[%clk 0:02:54.2]} 12. Rxc1 {[%clk 0:02:47.6]}
12... Nd7 {[%clk 0:02:55.1]} 13. c3 {[%clk 0:02:45]} 13... Ngf6 {[%clk
0:02:54.6]} 14. Ng5 {[%clk 0:02:41.5]} 14... Nb6 {[%clk 0:02:50.4]} 15. g3
{[%clk 0:02:40.7]} 15... O-O-O {[%clk 0:02:49.8]} 16. Bh3 {[%clk 0:02:24.2]}
16... Kb8 {[%clk 0:02:48.7]} 17. O-O {[%clk 0:02:21.5]} 17... Nc4 {[%clk
0:02:19.7]} 18. b3 {[%clk 0:02:16.3]} 18... Nd2 {[%clk 0:02:18.9]} 19. Qd3
{[%clk 0:02:02.3]} 19... Nxf1 {[%clk 0:02:18.2]} 20. Kxf1 {[%clk 0:01:56.4]}
20... e5 {[%clk 0:02:16]} 21. Qc4 {[%clk 0:01:49.7]} 21... exd4 {[%clk
0:01:37.1]} 22. Nxf7 {[%clk 0:01:41.4]} 22... b5 {[%clk 0:01:09.9]} 23. Qc5
{[%clk 0:01:12.5]} 23... Qxf7 {[%clk 0:01:07.8]} 24. Qxc6 {[%clk 0:01:06.8]}
24... Qb7 {[%clk 0:01:06.6]} 25. Bg2 {[%clk 0:00:54.2]} 25... Qxc6 {[%clk
0:01:04.8]} 26. Bxc6 {[%clk 0:00:50.8]} 26... dxc3 {[%clk 0:01:04.8]} 27. Bxb5
{[%clk 0:00:47.1]} 27... Ne4 {[%clk 0:01:02]} 28. Bc6 {[%clk 0:00:40.1]} 28...
Rd4 {[%clk 0:00:49.5]} 29. Bxe4 {[%clk 0:00:35.7]} 29... Rxe4 {[%clk 0:00:50.4]}
30. Rxc3 {[%clk 0:00:34.8]} 30... Rc8 {[%clk 0:00:49.6]} 31. Rd3 {[%clk
0:00:32.9]} 31... Rc2 {[%clk 0:00:48]} 32. a4 {[%clk 0:00:30.2]} 32... Ree2
{[%clk 0:00:47.9]} 33. Rf3 {[%clk 0:00:29.1]} 33... Red2 {[%clk 0:00:44]} 34. a5
{[%clk 0:00:23.5]} 34... Rd5 {[%clk 0:00:42.6]} 35. b4 {[%clk 0:00:20.9]} 35...
Rb2 {[%clk 0:00:40.2]} 36. Rf4 {[%clk 0:00:20.3]} 36... Rb5 {[%clk 0:00:35.8]}
37. a6 {[%clk 0:00:20.4]} 37... R2xb4 {[%clk 0:00:35.1]} 38. Rf7 {[%clk
0:00:20.4]} 38... Ra4 {[%clk 0:00:28]} 39. Rf8+ {[%clk 0:00:13.4]} 39... Kc7
{[%clk 0:00:27.1]} 40. Rf7+ {[%clk 0:00:13.6]} 40... Kb6 {[%clk 0:00:27.1]} 41.
Rxg7 {[%clk 0:00:13.9]} 41... Rxa6 {[%clk 0:00:21]} 42. Rxg6+ {[%clk 0:00:14.2]}
42... Ka5 {[%clk 0:00:21.9]} 43. Rg8 {[%clk 0:00:13.1]} 43... Rf6 {[%clk
0:00:19.8]} 44. Rg5 {[%clk 0:00:08.2]} 44... Kb4 {[%clk 0:00:16.2]} 45. f4
{[%clk 0:00:06.1]} 45... a5 {[%clk 0:00:15.5]} 46. Rg8 {[%clk 0:00:04.1]} 46...
a4 {[%clk 0:00:15.4]} 47. Ra8 {[%clk 0:00:03.5]} 47... a3 {[%clk 0:00:15.5]} 0-1

[Event "*** SCC Grand Prix: Titled Tuesday Blitz"]
[Site "Chess.com"]
[Date "2020.07.21"]
[Round "8"]
[White "Trickov"]
[Black "kirillshevchenko"]
[Result "0-1"]
[WhiteElo "2389"]
[BlackElo "2891"]
[TimeControl "180+1"]
[EndTime "11:36:12 PDT"]
[Termination "kirillshevchenko won on time"]

1. d4 {[%clk 0:03:00.9]} 1... Nf6 {[%clk 0:02:58.3]} 2. Nf3 {[%clk 0:02:58.3]}
2... g6 {[%clk 0:02:57.8]} 3. g3 {[%clk 0:02:54.9]} 3... Bg7 {[%clk 0:02:58.2]}
4. Bg2 {[%clk 0:02:55.4]} 4... O-O {[%clk 0:02:58.4]} 5. O-O {[%clk 0:02:55.5]}
5... d5 {[%clk 0:02:59]} 6. c4 {[%clk 0:02:55.7]} 6... Nc6 {[%clk 0:02:59.1]} 7.
cxd5 {[%clk 0:02:46.5]} 7... Nxd5 {[%clk 0:03:00]} 8. e4 {[%clk 0:02:46.7]} 8...
Nb6 {[%clk 0:03:00]} 9. d5 {[%clk 0:02:46.9]} 9... Na5 {[%clk 0:03:00.1]} 10.
Nc3 {[%clk 0:02:46]} 10... c6 {[%clk 0:02:59]} 11. dxc6 {[%clk 0:02:41.9]} 11...
Nxc6 {[%clk 0:02:58.3]} 12. Nd5 {[%clk 0:02:35.2]} 12... Bg4 {[%clk 0:02:53.4]}
13. h3 {[%clk 0:02:32.5]} 13... Bxf3 {[%clk 0:02:53.3]} 14. Bxf3 {[%clk
0:02:32.2]} 14... e6 {[%clk 0:02:53.4]} 15. Nc3 {[%clk 0:02:14.7]} 15... Rc8
{[%clk 0:02:44.5]} 16. Bg2 {[%clk 0:02:11.4]} 16... Qxd1 {[%clk 0:02:21.4]} 17.
Rxd1 {[%clk 0:02:10.4]} 17... Nc4 {[%clk 0:02:22]} 18. Rb1 {[%clk 0:02:02.9]}
18... b6 {[%clk 0:02:02.9]} 19. b3 {[%clk 0:01:32.1]} 19... Bxc3 {[%clk
0:01:59.5]} 20. bxc4 {[%clk 0:01:31.8]} 20... Bd4 {[%clk 0:01:45.3]} 21. e5
{[%clk 0:00:57.7]} 21... Bxe5 {[%clk 0:01:36.9]} 22. Rd7 {[%clk 0:00:55.9]}
22... Na5 {[%clk 0:01:28]} 23. Rxa7 {[%clk 0:00:52.2]} 23... Nxc4 {[%clk
0:01:28.1]} 24. Bh6 {[%clk 0:00:47.2]} 24... Rfd8 {[%clk 0:01:25.7]} 25. Bf1
{[%clk 0:00:44.3]} 25... Nd2 {[%clk 0:01:18.8]} 26. Rxb6 {[%clk 0:00:37.1]}
26... Nf3+ {[%clk 0:01:15.6]} 27. Kg2 {[%clk 0:00:35.6]} 27... Ne1+ {[%clk
0:01:16]} 28. Kh2 {[%clk 0:00:35.5]} 28... Bd4 {[%clk 0:01:16.9]} 29. Rbb7
{[%clk 0:00:29.4]} 29... Bxa7 {[%clk 0:01:15.7]} 30. Rxa7 {[%clk 0:00:28.8]}
30... Rc2 {[%clk 0:01:15.2]} 31. Kg1 {[%clk 0:00:23.2]} 31... Nf3+ {[%clk
0:01:04.5]} 32. Kg2 {[%clk 0:00:22.6]} 32... Nd2 {[%clk 0:01:05.1]} 33. Bb5
{[%clk 0:00:20.5]} 33... Ne4 {[%clk 0:01:03.4]} 34. Be3 {[%clk 0:00:20.3]} 34...
Nc3 {[%clk 0:00:57.2]} 35. Bc4 {[%clk 0:00:18.4]} 35... Nd1 {[%clk 0:00:51.3]}
36. Bb6 {[%clk 0:00:17.5]} 36... Rb8 {[%clk 0:00:51.4]} 37. Bb3 {[%clk
0:00:17.6]} 37... Rd2 {[%clk 0:00:41.9]} 38. Bc5 {[%clk 0:00:17.2]} 38... Nb2
{[%clk 0:00:34.8]} 39. Be3 {[%clk 0:00:15.9]} 39... Rdd8 {[%clk 0:00:30.7]} 40.
Bg5 {[%clk 0:00:14.7]} 40... Rdc8 {[%clk 0:00:30.1]} 41. Bf4 {[%clk 0:00:14.4]}
41... Ra8 {[%clk 0:00:30.6]} 42. Rb7 {[%clk 0:00:14.4]} 42... Na4 {[%clk
0:00:29.4]} 43. h4 {[%clk 0:00:08.9]} 43... Nc3 {[%clk 0:00:27.1]} 44. h5 {[%clk
0:00:07.8]} 44... gxh5 {[%clk 0:00:28]} 45. Bh6 {[%clk 0:00:04.9]} 45... Ra5
{[%clk 0:00:24.2]} 46. Bd2 {[%clk 0:00:02.8]} 46... Rac5 {[%clk 0:00:24.1]} 47.
Be3 {[%clk 0:00:01.3]} 47... Rf5 {[%clk 0:00:24.7]} 0-1

[Event "*** SCC Grand Prix: Titled Tuesday Blitz"]
[Site "Chess.com"]
[Date "2020.07.21"]
[Round "8"]
[White "talman67"]
[Black "rasmussvane"]
[Result "0-1"]
[WhiteElo "2495"]
[BlackElo "2867"]
[TimeControl "180+1"]
[EndTime "11:36:14 PDT"]
[Termination "rasmussvane won by resignation"]

1. e4 {[%clk 0:03:00.9]} 1... c6 {[%clk 0:02:59.4]} 2. d4 {[%clk 0:02:59]} 2...
d5 {[%clk 0:02:59.7]} 3. e5 {[%clk 0:02:59.4]} 3... Bf5 {[%clk 0:02:59.4]} 4.
Nf3 {[%clk 0:02:59.9]} 4... e6 {[%clk 0:02:59.7]} 5. Be2 {[%clk 0:03:00]} 5...
Ne7 {[%clk 0:03:00.2]} 6. O-O {[%clk 0:02:59.8]} 6... Ng6 {[%clk 0:03:00.8]} 7.
Be3 {[%clk 0:02:52.5]} 7... f6 {[%clk 0:03:00.8]} 8. c4 {[%clk 0:02:49.8]} 8...
Nd7 {[%clk 0:02:57.4]} 9. Nc3 {[%clk 0:02:48.8]} 9... Be7 {[%clk 0:02:46.6]} 10.
exf6 {[%clk 0:02:34.8]} 10... Bxf6 {[%clk 0:02:30]} 11. Bd3 {[%clk 0:02:34.2]}
11... Bxd3 {[%clk 0:02:12]} 12. Qxd3 {[%clk 0:02:35.1]} 12... O-O {[%clk
0:02:12.6]} 13. Rfe1 {[%clk 0:02:34.8]} 13... Nb6 {[%clk 0:02:11.4]} 14. b3
{[%clk 0:02:33.4]} 14... Qd7 {[%clk 0:02:05.8]} 15. Bg5 {[%clk 0:02:27.8]} 15...
Rad8 {[%clk 0:01:52]} 16. Bxf6 {[%clk 0:02:22.4]} 16... Rxf6 {[%clk 0:01:51]}
17. c5 {[%clk 0:02:22]} 17... Nc8 {[%clk 0:01:49.6]} 18. Ne5 {[%clk 0:02:21.6]}
18... Nxe5 {[%clk 0:01:46.2]} 19. Rxe5 {[%clk 0:02:22.5]} 19... Ne7 {[%clk
0:01:46.4]} 20. Rae1 {[%clk 0:02:18.9]} 20... Ng6 {[%clk 0:01:46.6]} 21. R5e3
{[%clk 0:02:16.6]} 21... Nf4 {[%clk 0:01:43.9]} 22. Qd2 {[%clk 0:02:13.7]} 22...
Rdf8 {[%clk 0:01:13.9]} 23. Ne2 {[%clk 0:02:12.2]} 23... Nh5 {[%clk 0:01:01]}
24. f3 {[%clk 0:02:02.7]} 24... Qf7 {[%clk 0:00:59]} 25. Nc1 {[%clk 0:02:01.5]}
25... Qg6 {[%clk 0:00:52.1]} 26. Nd3 {[%clk 0:01:59.8]} 26... Qg5 {[%clk
0:00:45.8]} 27. Qe2 {[%clk 0:01:43.7]} 27... Qh4 {[%clk 0:00:42.7]} 28. Rxe6
{[%clk 0:01:18.9]} 28... Qxd4+ {[%clk 0:00:40.5]} 29. Qe3 {[%clk 0:01:15.2]}
29... Qc3 {[%clk 0:00:16.6]} 30. Re7 {[%clk 0:01:09]} 30... h6 {[%clk
0:00:15.3]} 31. Rxb7 {[%clk 0:01:03.9]} 31... d4 {[%clk 0:00:12]} 32. Qe4 {[%clk
0:00:57.5]} 32... Nf4 {[%clk 0:00:11.7]} 33. Nxf4 {[%clk 0:00:35.1]} 33... Rxf4
{[%clk 0:00:12.6]} 34. Qe6+ {[%clk 0:00:28]} 34... Kh8 {[%clk 0:00:12.5]} 35.
Qe5 {[%clk 0:00:28.3]} 35... R4f6 {[%clk 0:00:10.7]} 36. Rd1 {[%clk 0:00:26.4]}
36... Qc2 {[%clk 0:00:06.9]} 37. Qxd4 {[%clk 0:00:19.6]} 37... Rg6 {[%clk
0:00:04.5]} 38. Rd2 {[%clk 0:00:18.9]} 38... Qb1+ {[%clk 0:00:05]} 39. Kf2
{[%clk 0:00:19.1]} 39... Qf5 {[%clk 0:00:04.2]} 40. Re2 {[%clk 0:00:14.2]} 40...
Rxg2+ {[%clk 0:00:04.1]} 41. Ke1 {[%clk 0:00:08.4]} 41... Qb1+ {[%clk
0:00:04.3]} 42. Kd2 {[%clk 0:00:07.9]} 42... Qxa2+ {[%clk 0:00:04.7]} 43. Kc3
{[%clk 0:00:07.9]} 43... Qxe2 {[%clk 0:00:05]} 44. Kb4 {[%clk 0:00:04]} 44...
Qxf3 {[%clk 0:00:04.2]} 0-1

[Event "*** SCC Grand Prix: Titled Tuesday Blitz"]
[Site "Chess.com"]
[Date "2020.07.21"]
[Round "8"]
[White "fmshawnrl123"]
[Black "TargetA"]
[Result "0-1"]
[WhiteElo "2659"]
[BlackElo "2581"]
[TimeControl "180+1"]
[EndTime "11:36:15 PDT"]
[Termination "TargetA won on time"]

1. c4 {[%clk 0:03:00.9]} 1... g6 {[%clk 0:02:58.2]} 2. g3 {[%clk 0:02:58.8]}
2... Bg7 {[%clk 0:02:58]} 3. Bg2 {[%clk 0:02:59.7]} 3... e5 {[%clk 0:02:57.9]}
4. Nc3 {[%clk 0:02:59.5]} 4... d6 {[%clk 0:02:58.1]} 5. e4 {[%clk 0:02:59.7]}
5... Nc6 {[%clk 0:02:54.4]} 6. Nge2 {[%clk 0:02:58.9]} 6... f5 {[%clk
0:02:53.7]} 7. d3 {[%clk 0:02:58.3]} 7... Nf6 {[%clk 0:02:53.1]} 8. O-O {[%clk
0:02:58.2]} 8... O-O {[%clk 0:02:51.1]} 9. Nd5 {[%clk 0:02:58.5]} 9... Nxd5
{[%clk 0:02:46.4]} 10. cxd5 {[%clk 0:02:59.4]} 10... Ne7 {[%clk 0:02:46.8]} 11.
Bd2 {[%clk 0:02:45.5]} 11... c6 {[%clk 0:02:42.8]} 12. dxc6 {[%clk 0:02:43.2]}
12... bxc6 {[%clk 0:02:43.7]} 13. Rc1 {[%clk 0:02:41.9]} 13... Be6 {[%clk
0:02:42.3]} 14. a3 {[%clk 0:02:32.2]} 14... Rb8 {[%clk 0:02:31.5]} 15. Bc3
{[%clk 0:02:31.1]} 15... d5 {[%clk 0:02:27.7]} 16. exf5 {[%clk 0:02:26.4]} 16...
Nxf5 {[%clk 0:02:22.3]} 17. Bb4 {[%clk 0:02:21.8]} 17... Qb6 {[%clk 0:02:00.9]}
18. Bxf8 {[%clk 0:02:17.2]} 18... Rxf8 {[%clk 0:02:01.8]} 19. Qc2 {[%clk
0:02:08.7]} 19... Bh6 {[%clk 0:01:53]} 20. Qxc6 {[%clk 0:01:44.4]} 20... Bxc1
{[%clk 0:01:52]} 21. Rxc1 {[%clk 0:01:45.3]} 21... Nd4 {[%clk 0:01:37.5]} 22.
Nxd4 {[%clk 0:01:41.5]} 22... Rc8 {[%clk 0:01:36.9]} 23. Qxe6+ {[%clk
0:00:11.5]} 23... Qxe6 {[%clk 0:01:35.2]} 24. Nxe6 {[%clk 0:00:12.4]} 24...
Rxc1+ {[%clk 0:01:34.9]} 25. Bf1 {[%clk 0:00:13.3]} 25... h6 {[%clk 0:01:34.5]}
26. Nd8 {[%clk 0:00:09.8]} 26... Kf8 {[%clk 0:01:21.7]} 27. Nb7 {[%clk
0:00:09.1]} 27... Ke7 {[%clk 0:01:12.1]} 28. b4 {[%clk 0:00:09]} 28... Ra1
{[%clk 0:01:09.6]} 29. Na5 {[%clk 0:00:08.7]} 29... Kd6 {[%clk 0:01:07.4]} 30.
f4 {[%clk 0:00:07.2]} 30... Rxa3 {[%clk 0:00:58.6]} 31. fxe5+ {[%clk 0:00:06.5]}
31... Kxe5 {[%clk 0:00:59.5]} 32. Kf2 {[%clk 0:00:06.3]} 32... Ra2+ {[%clk
0:00:58.2]} 33. Be2 {[%clk 0:00:06.1]} 33... Kd4 {[%clk 0:00:56.7]} 34. Nc6+
{[%clk 0:00:05.2]} 34... Kc3 {[%clk 0:00:56.1]} 35. b5 {[%clk 0:00:04.5]} 35...
d4 {[%clk 0:00:54.7]} 36. Kf3 {[%clk 0:00:02.8]} 36... h5 {[%clk 0:00:53.2]} 37.
h3 {[%clk 0:00:02.6]} 37... a6 {[%clk 0:00:47.6]} 38. bxa6 {[%clk 0:00:02.6]}
38... Rxa6 {[%clk 0:00:47.6]} 39. Ne7 {[%clk 0:00:03.1]} 39... Kd2 {[%clk
0:00:46.7]} 40. Bf1 {[%clk 0:00:02.6]} 40... Rf6+ {[%clk 0:00:42.7]} 41. Ke4
{[%clk 0:00:02.8]} 41... Rxf1 {[%clk 0:00:38.9]} 42. Kxd4 {[%clk 0:00:02.9]}
42... Rf3 {[%clk 0:00:31.7]} 43. Nxg6 {[%clk 0:00:02.2]} 43... Rxd3+ {[%clk
0:00:31.1]} 44. Ke4 {[%clk 0:00:02.2]} 44... Rxg3 {[%clk 0:00:30.8]} 45. Nf4
{[%clk 0:00:02.5]} 45... h4 {[%clk 0:00:29.1]} 46. Kf5 {[%clk 0:00:02.4]} 46...
Ke3 {[%clk 0:00:24.6]} 47. Ng6 {[%clk 0:00:02.6]} 47... Rxh3 {[%clk 0:00:23.1]}
48. Kg4 {[%clk 0:00:02.4]} 48... Rg3+ {[%clk 0:00:23.3]} 49. Kf5 {[%clk
0:00:01.7]} 49... Rxg6 {[%clk 0:00:22.8]} 0-1

[Event "*** SCC Grand Prix: Titled Tuesday Blitz"]
[Site "Chess.com"]
[Date "2020.07.21"]
[Round "8"]
[White "alexrustemov"]
[Black "Thipsay"]
[Result "1-0"]
[WhiteElo "2687"]
[BlackElo "2466"]
[TimeControl "180+1"]
[EndTime "11:36:16 PDT"]
[Termination "alexrustemov won by resignation"]

1. d4 {[%clk 0:03:00.9]} 1... Nf6 {[%clk 0:02:59.2]} 2. c4 {[%clk 0:03:00.2]}
2... g6 {[%clk 0:02:59.4]} 3. Nf3 {[%clk 0:02:59.5]} 3... Bg7 {[%clk 0:02:59.4]}
4. g3 {[%clk 0:02:59.3]} 4... d6 {[%clk 0:02:59.1]} 5. Bg2 {[%clk 0:02:58.8]}
5... O-O {[%clk 0:02:59.2]} 6. Nc3 {[%clk 0:02:58.2]} 6... Nbd7 {[%clk
0:02:59.3]} 7. d5 {[%clk 0:02:57.4]} 7... e5 {[%clk 0:02:47]} 8. dxe6 {[%clk
0:02:58.3]} 8... fxe6 {[%clk 0:02:46.7]} 9. Qc2 {[%clk 0:02:59]} 9... e5 {[%clk
0:02:42.5]} 10. Be3 {[%clk 0:02:43.8]} 10... Ng4 {[%clk 0:02:36.4]} 11. Bg5
{[%clk 0:02:42.7]} 11... Ngf6 {[%clk 0:02:17.2]} 12. O-O {[%clk 0:02:34.6]}
12... Nc5 {[%clk 0:02:13.9]} 13. Qc1 {[%clk 0:02:30.5]} 13... Ne6 {[%clk
0:02:07.2]} 14. Bh6 {[%clk 0:02:28.1]} 14... Bxh6 {[%clk 0:01:53.6]} 15. Qxh6
{[%clk 0:02:29]} 15... Ng4 {[%clk 0:01:51.6]} 16. Qd2 {[%clk 0:02:27.3]} 16...
Kg7 {[%clk 0:01:38.6]} 17. h3 {[%clk 0:02:20.6]} 17... Nf6 {[%clk 0:01:37.9]}
18. Rac1 {[%clk 0:02:02.9]} 18... Nh5 {[%clk 0:01:23.4]} 19. b4 {[%clk
0:01:53.1]} 19... Bd7 {[%clk 0:00:45]} 20. c5 {[%clk 0:01:38.4]} 20... Bc6
{[%clk 0:00:43.6]} 21. cxd6 {[%clk 0:01:35]} 21... cxd6 {[%clk 0:00:38.7]} 22.
b5 {[%clk 0:01:28.5]} 22... Bxf3 {[%clk 0:00:38.1]} 23. Bxf3 {[%clk 0:01:27.3]}
23... Nd4 {[%clk 0:00:19.8]} 24. Bxb7 {[%clk 0:01:13.5]} 24... Rb8 {[%clk
0:00:19.7]} 25. Bc6 {[%clk 0:01:12.9]} 25... Qe7 {[%clk 0:00:13]} 26. Kg2 {[%clk
0:01:08]} 26... Qf7 {[%clk 0:00:11.3]} 27. Bd5 {[%clk 0:01:00.4]} 27... Qf5
{[%clk 0:00:10.5]} 28. Be4 {[%clk 0:00:48.5]} 28... Qe6 {[%clk 0:00:09.1]} 29.
Qd3 {[%clk 0:00:40.7]} 29... Nf5 {[%clk 0:00:08]} 30. Nd5 {[%clk 0:00:36.4]}
30... Rf7 {[%clk 0:00:07.1]} 31. a4 {[%clk 0:00:35.4]} 31... Nd4 {[%clk
0:00:06.1]} 32. e3 {[%clk 0:00:33.3]} 32... Nf5 {[%clk 0:00:05.5]} 33. Rc7
{[%clk 0:00:28.6]} 33... Rxc7 {[%clk 0:00:04.5]} 34. Nxc7 {[%clk 0:00:28.5]}
34... Qf7 {[%clk 0:00:05.1]} 35. Nd5 {[%clk 0:00:26.5]} 35... Rf8 {[%clk
0:00:05.3]} 36. Bxf5 {[%clk 0:00:19]} 36... gxf5 {[%clk 0:00:05]} 37. Rc1 {[%clk
0:00:18.6]} 37... f4 {[%clk 0:00:04.9]} 38. Rc7 {[%clk 0:00:17.9]} 38... fxg3
{[%clk 0:00:02.7]} 39. fxg3 {[%clk 0:00:16.7]} 39... Qxc7 {[%clk 0:00:01.9]} 40.
Nxc7 {[%clk 0:00:16.3]} 40... Rf6 {[%clk 0:00:02.5]} 41. Ne8+ {[%clk 0:00:15.6]}
41... Kf7 {[%clk 0:00:01.6]} 42. Nxf6 {[%clk 0:00:15.4]} 42... Nxf6 {[%clk
0:00:01.6]} 43. Qxd6 {[%clk 0:00:14.9]} 43... e4 {[%clk 0:00:02.4]} 44. a5
{[%clk 0:00:13.9]} 44... Kg6 {[%clk 0:00:03]} 45. b6 {[%clk 0:00:13.3]} 45... h5
{[%clk 0:00:03.8]} 46. bxa7 {[%clk 0:00:12.2]} 1-0